Cogmind - Beta 15 @@@ ROGUE MODE // 2025.09.14 @ 19:59:59 Player: BLINGO GOVLIN Result: Destroyed by G-47 Trooper with Particle Gun Performance ------------- Evolutions (2) 1000 Regions Visited (3) 600 Robots Destroyed (47) 235 Value Destroyed (1337) 1337 Prototype IDs (3) 60 Alien Tech Used (0) 0 Bonus (0) 0 TOTAL SCORE: 3232 Bonus ------- None Cogmind --------- Core Integrity 0/550 Matter 207/300 Energy 80/100 System Corruption 0% Temperature Cool (9) Movement Core (400) Ox7 Location -8/Materials Parts ------- > --- POWER (1) -------- (None) > --- PROPULSION (4) --- (None) > --- UTILITY (4) ------ Large Storage Unit > --- WEAPON (2) ------- Maul > --- INVENTORY (15) --- Light Ion Engine Structural Scanner Advanced Visual Processing Unit Improved Signal Interpreter Terrain Scan Processor Improved Utility Shielding Hacking Suite Hacking Suite Hacking Suite Hacking Suite Hacking Suite Peak State ------------ > --- POWER ------------ Light Nuclear Core > --- PROPULSION ------- Aluminum Leg Aluminum Leg Aluminum Leg Aluminum Leg > --- UTILITY ---------- Large Storage Unit Medium Armor Plating > --- WEAPON ----------- Heavy Assault Rifle Minigun > --- INVENTORY -------- Light Ion Engine Aluminum Leg Structural Scanner Advanced Visual Processing Unit Terrain Scan Processor Propulsion Shielding Propulsion Shielding Improved Utility Shielding Minigun Grenade Launcher Grenade Launcher Maul [Rating: 17] Favorites ----------- Power Light Nuclear Core Engine Ion Engine Power Core Light Nuclear Core Propulsion Aluminum Leg Treads Light Treads Leg Aluminum Leg Utility Large Storage Unit Storage Large Storage Unit Protection Propulsion Shielding Weapon Light Assault Rifle Energy Gun Heavy Laser Ballistic Gun Light Assault Rifle Launcher Grenade Launcher Impact Weapon Maul Slashing Weapon Katana Build | -11 -10 -9 -8 ------- Run | Yrd Mat Mat Mat Slots Evolved 4 | . . 2 2 Power . | . . . . Propulsion 2 | . . 2 . Utility 2 | . . . 2 Weapon . | . . . . Parts Attached 35 | 6 8 13 8 Power 4 | 1 2 1 . Engine 2 | 1 1 . . Core 2 | . 1 1 . Reactor . | . . . . Propulsion 12 | 2 2 5 3 Treads 4 | . . 1 3 Leg 8 | 2 2 4 . Wheel . | . . . . Hover . | . . . . Flight . | . . . . Utility 7 | 1 3 2 1 Device . | . . . . Storage 3 | 1 1 1 . Processor . | . . . . Hackware . | . . . . Protection 4 | . 2 1 1 Artifact . | . . . . Weapon 12 | 2 1 5 4 Energy Gun 1 | . . . 1 Energy Cannon . | . . . . Ballistic Gun 7 | 2 . 5 . Ballistic Cannon . | . . . . Launcher 2 | . 1 . 1 Special Weapon . | . . . . Impact Weapon 1 | . . . 1 Slashing Weapon 1 | . . . 1 Piercing Weapon . | . . . . Special Melee Weapon . | . . . . Unidentified Prototypes . | . . . . Parts Lost 18 | . 1 6 11 Power 2 | . 1 . 1 Propulsion 9 | . . 4 5 Utility 2 | . . 1 1 Weapon 5 | . . 1 4 Highest Loss Streak 8 | . 1 3 8 To Critical Strikes . | . . . . Average Backups 10 | 1 7 12 14 Power . | . . 1 1 Propulsion 1 | . 2 . . Utility 4 | . 1 6 9 Weapon 3 | . 2 4 3 Tool/Special . | . . . . Unused Backups 19 | . 4 5 10 Power 1 | . 1 . . Propulsion 1 | . 1 . . Utility 14 | . 2 2 10 Weapon 3 | . . 3 . Tool/Special . | . . . . Average Slot Usage (%) 88 | . 99 93 65 Engine 2 | . 5 . . Core 8 | . 8 11 3 Treads 6 | . . 4 19 Leg 25 | . 28 34 12 Storage 11 | . 14 11 9 Protection 10 | . 13 9 4 Energy Gun 1 | . . . 5 Ballistic Gun 21 | . 26 22 11 Peak Build Rating 17 | 6 10 17 15 Average Rating 11 | 4 8 15 13 On Entrance 7 | . 6 10 14 Naked Turns . | . . . . Heaviest Build 38 | 11 21 38 30 Greatest Support 60 | 20 20 40 60 Greatest Overweight (x) 6 | . 1 1 6 Average Overweight (x) . | . . . . Largest Inventory Capacity 15 | 8 10 15 15 Average Capacity 11 | 6 9 13 15 Most Carried 15 | 4 10 15 15 Average Carried 10 | 1 7 12 14 Final Capacity 15 | 8 10 15 15 Final Carried 15 | 2 10 15 11 Class Distribution -------------------- 51% | Scavenger-Mutant 48% | Mutant Dominant Class ---------------- Mutant | -10/Materials Scavenger-Mutant | -9/Materials Scavenger-Mutant | -8/Materials Resources | -11 -10 -9 -8 ----------- Run | Yrd Mat Mat Mat Matter Collected 1212 | 234 302 541 135 Remotely . | . . . . Salvage Created 1566 | . 389 648 529 Parts 107 | . 37 40 30 Haulers Intercepted 1 | . . 1 . Recyclers Shooed . | . . . . Parts Field Recycled . | . . . . Retrieved Matter . | . . . . Parts Self-Destructed . | . . . . Prevented . | . . . . Kills | -11 -10 -9 -8 ------- Run | Yrd Mat Mat Mat Combat Hostiles Destroyed 41 | . 14 14 13 Guns 38 | . 13 14 11 AOE 3 | . 1 . 2 Classes Destroyed 9 | . 3 4 2 Worker 1 | . . . 1 Builder 1 | . . . 1 Hauler 1 | . . 1 . Recycler 1 | . . 1 . Operator 2 | . 1 . 1 Swarmer 14 | . 6 5 3 Grunt 18 | . 8 3 7 Duelist 2 | . . 1 1 Sentry 7 | . . 5 2 Best Kill Streak 5 | . 3 4 5 Combat Bots Only 4 | . 3 4 3 Max Kills in Single Turn 2 | . 1 1 2 Gunslinging . | . . . . Exploded 2 | . 1 . 2 Melee . | . . . . Uniques/NPCs Destroyed . | . . . . Combat | -11 -10 -9 -8 -------- Run | Yrd Mat Mat Mat Hostile Shots Fired 314 | . 55 98 161 Missed 84 | . 18 22 44 Hits 230 | . 37 76 117 Melee 16 | . . 8 8 Projectile 214 | . 37 68 109 Critical Strikes 13 | . . 3 10 Damage Taken 3123 | . 406 1100 1617 Core 856 | . 83 219 554 Absorbed by Shields . | . . . . Redirected to Shielding 42 | . 17 25 . Core Remaining (%) 70 | 100 66 45 . Volleys Fired 155 | . 50 57 48 Largest 2 | . 2 2 2 Hottest 89 | . 40 50 89 Shots Fired 295 | . 96 113 86 Gun 287 | . 95 113 79 Cannon . | . . . . Launcher 8 | . 1 . 7 Special . | . . . . Kinetic 262 | . 95 113 54 Thermal 25 | . . . 25 Explosive 8 | . 1 . 7 Electromagnetic . | . . . . Robot Hit Streak 18 | . 18 13 16 Robot Miss Streak 5 | . 3 4 5 Penetration Max . | . . . . Secondary Targets 1 | . 1 . . Max Gunslinging Chain 1 | . 1 . . Shots Hit Robots 197 | . 56 80 61 Core Hits 91 | . 25 25 41 Critical Kills . | . . . . Critical Parts Destroyed 1 | . . 1 . Critical Strikes 2 | . . 1 1 Destroy 1 | . . 1 . Sever 1 | . . . 1 Melee Attacks 5 | . . . 5 Impact . | . . . . Slashing 5 | . . . 5 Piercing . | . . . . Sneak Attacks . | . . . . Combat Hostiles . | . . . . Follow-up Attacks . | . . . . Damage Inflicted 3224 | . 706 1333 1185 Guns 2651 | . 626 1333 692 Cannons . | . . . . Explosions 478 | . 76 . 402 Melee 91 | . . . 91 Ramming 4 | . 4 . . Kinetic 2346 | . 626 1333 387 Thermal 305 | . . . 305 Explosive 478 | . 76 . 402 Electromagnetic . | . . . . Impact . | . . . . Slashing 91 | . . . 91 Piercing . | . . . . Highest Corruption 1 | . 1 . . Average Corruption 1 | . 1 . . Corruption Purged . | . . . . Corruption Blocked . | . . . . Effects 13 | . 13 . . Message Errors 5 | . 5 . . Matter Fused 4 | . 4 . . Heat Flow Errors 1 | . 1 . . Energy Discharges 2 | . 2 . . Data Loss (major) 1 | . 1 . . Overload Shots . | . . . . Overflow Damage 7 | . . . 7 Projectiles . | . . . . Explosions 7 | . . . 7 Melee . | . . . . Knockbacks . | . . . . Impact . | . . . . Kinetic . | . . . . Secondary . | . . . . Self-Inflicted Damage 49 | . 17 . 32 Shots 3 | . 1 . 2 Rammed . | . . . . Targets Rammed 1 | . 1 . . Kicked 1 | . 1 . . Crushed . | . . . . Highest Temperature 203 | . 203 66 152 Average Temperature 29 | . 23 20 44 Received Heat Transfer 1002 | . 108 291 603 Siege Activations . | . . . . Martial Activations . | . . . . Shielding Activations . | . . . . Robots Disrupted . | . . . . Combat Hostiles . | . . . . Robots Corrupted . | . . . . Combat Hostiles . | . . . . Parts Fried . | . . . . Impact Corruptions . | . . . . Robots Melted . | . . . . Combat Hostiles . | . . . . Parts Melted 1 | . . . 1 Heat Transferred 592 | . . . 592 Parts Sabotaged . | . . . . Parts Stolen . | . . . . Parts Stripped . | . . . . Power Chain Reactions . | . . . . Alert | -11 -10 -9 -8 ------- Run | Yrd Mat Mat Mat Maximum Alert Level . | . . . . Low Security (%) 100 | 100 100 100 100 Level 1 . | . . . . Level 2 . | . . . . Level 3 . | . . . . Level 4 . | . . . . Level 5 . | . . . . High Security . | . . . . Max Security . | . . . . Peak Influence 118 | . 118 104 84 Initial 37 | . . . 37 Average 37 | . 41 40 31 Influence Increases 1235 | . 390 440 405 Destroy 0b10 Robot/C 820 | . 280 280 260 Destroy 0b10 Robot/NC 30 | . 5 10 15 Destroy Leader 192 | . 50 92 50 Successful Hack 40 | . 16 10 14 Disable Machine 15 | . . 15 . Destroy Structure 33 | . 9 3 21 Lose Combat Pursuer 105 | . 30 30 45 Influence Decreases 1161 | . 390 352 419 Entered New Map 51 | . . . 51 Time Decay 930 | . 380 292 258 Lost Part 180 | . 10 60 110 Squads Dispatched 3 | . 2 . 1 Investigation 1 | . 1 . . Extermination . | . . . . Reinforcement 2 | . 1 . 1 Assault . | . . . . Garrison . | . . . . Intercept . | . . . . Searches Triggered . | . . . . Construction Impeded 1 | . . . 1 Haulers Reinforced . | . . . . Active Scanning Responses . | . . . . Cargo Convoy Interrupts . | . . . . Stealth | -11 -10 -9 -8 --------- Run | Yrd Mat Mat Mat Distress Signals 4 | . . 3 1 Communications Jammed . | . . . . Distress Signals . | . . . . Times Spotted 88 | . 36 26 26 Peak Tracking Total 7 | . 4 6 7 Tactical Retreats 7 | . 2 2 3 Traps | -11 -10 -9 -8 ------- Run | Yrd Mat Mat Mat Traps Triggered 3 | . 3 . . Indirectly . | . . . . Trap Hack Attempts . | . . . . Triggered . | . . . . Disarmed . | . . . . Reprogrammed . | . . . . Reused . | . . . . Traps Extracted . | . . . . Installed . | . . . . Triggered . | . . . . Machines | -11 -10 -9 -8 ---------- Run | Yrd Mat Mat Mat Machines Disabled 1 | . . 1 . Max in Single Turn 1 | . . 1 . Machines Repaired . | . . . . Machines Dismantled . | . . . . Machines Sabotaged . | . . . . Overloaded Fab Kills . | . . . . Hacking | -11 -10 -9 -8 --------- Run | Yrd Mat Mat Mat Machines Accessed 11 | . 4 2 5 Terminals 10 | . 4 1 5 Fabricators . | . . . . Repair Stations . | . . . . Recycling Units . | . . . . Scanalyzers 1 | . . 1 . Garrison Access . | . . . . Total Hacks 26 | . 11 7 8 Successful 9 | . 3 5 1 Failed 17 | . 8 2 7 Catastrophic 5 | . . 1 4 Database Lockouts . | . . . . Manual 13 | . 3 3 7 Terminals 22 | . 11 3 8 Fabricators . | . . . . Repair Stations . | . . . . Recycling Units . | . . . . Scanalyzers 4 | . . 4 . Garrison Access . | . . . . Terminal Hacks 3 | . 2 . 1 Prototype ID Bank 1 | . . . 1 Hauler Manifests 1 | . 1 . . Zone Layout 1 | . 1 . . Fabricator Hacks . | . . . . Repair Station Hacks . | . . . . Recycling Unit Hacks . | . . . . Scanalyzer 4 | . . 4 . Insert Component 2 | . . 2 . Analyze 2 | . . 2 . Garrison Access Hacks . | . . . . Unauthorized Hacks 2 | . 1 1 . Terminals 2 | . 1 1 . Operators 2 | . 1 1 . Fabricators . | . . . . Repair Stations . | . . . . Recycling Units . | . . . . Scanalyzers . | . . . . Garrison Access . | . . . . Data Cores Recovered 1 | . . . 1 Used . | . . . . Hacking Detections 11 | . 4 2 5 Full Trace Events 1 | . . 1 . Feedback Events . | . . . . Feedback Blocked . | . . . . Robot Schematics Acquired . | . . . . Robots Built . | . . . . Authchips . | . . . . Time . | . . . . Total Robot Build Rating . | . . . . Part Schematics Acquired 2 | . . 2 . Parts Built . | . . . . Authchips . | . . . . Time . | . . . . Total Part Build Rating . | . . . . Parts Repaired . | . . . . Time . | . . . . Parts Recycled . | . . . . Recycled Matter . | . . . . Retrieved Matter . | . . . . Retrieved Components . | . . . . Parts Scanalyzed 2 | . . 2 . Part Schematics Acquired 2 | . . 2 . Parts Damaged . | . . . . Bothacking | -11 -10 -9 -8 ------------ Run | Yrd Mat Mat Mat Used RIF Installer . | . . . . Robots Hacked . | . . . . Non-combat . | . . . . Combat . | . . . . Robot Hacks Applied . | . . . . Relay Couplers Released . | . . . . Fabnet Peak Effective % . | . . . . Robots Rewired . | . . . . Allies Hacked . | . . . . Hacks Repelled . | . . . . Allies | -11 -10 -9 -8 -------- Run | Yrd Mat Mat Mat Total Allies . | . . . . Largest Group . | . . . . Highest-Rated Group . | . . . . Highest-Rated Ally . | . . . . Total Orders . | . . . . Ally Attacks . | . . . . Total Damage . | . . . . Kills . | . . . . Allies Corrupted . | . . . . Allies Melted . | . . . . Intel | -11 -10 -9 -8 ------- Run | Yrd Mat Mat Mat Active Infowar (turns) . | . . . . Robot Analysis Total . | . . . . Derelict Logs Recovered . | . . . . Drone Launches . | . . . . Drone Recoveries . | . . . . Exploration | -11 -10 -9 -8 ------------- Run | Yrd Mat Mat Mat Turns Passed 2871 | 59 1301 774 737 Spaces Moved 1466 | 49 749 360 308 Core 20 | 19 . . 1 Treads 254 | . . 47 207 Legs 1192 | 30 749 313 100 Wheels . | . . . . Hover . | . . . . Flight . | . . . . Fastest Speed 50 | 50 120 120 160 Average Speed 139 | 92 125 146 171 Slowest Speed 350 | 120 190 240 350 Overloaded Moves . | . . . . Propulsion Burnouts . | . . . . Robots Hopped . | . . . . Potential Cave-ins . | . . . . Cave-ins Triggered . | . . . . Exploration Rate (%) 44 | 4 88 46 38 Regions Visited 3 Branch Regions . Pre-discovered Areas . | . . . . Known Exits Taken . | . . . . Unknown Exits Taken 3 | 1 1 1 . Scrap Searched . | . . . . Spaces Dug . | . . . . Terrain Destroyed 26 | . 8 . 18 Melee . | . . . . Projectile . | . . . . AOE 26 | . 8 . 18 Terrain Rammed . | . . . . Walls Destroyed . | . . . . Machines Disabled . | . . . . Actions | -11 -10 -9 -8 --------- Run | Yrd Mat Mat Mat Total 2031 | 62 1025 513 431 Wait 302 | . 191 55 56 Move 1463 | 48 748 359 308 Hop . | . . . . Pick Up 44 | 8 17 17 2 Fast Attach 8 | . . 4 4 Attach 18 | 6 2 4 6 Detach . | . . . . Swap 14 | . 8 5 1 Drop 21 | . 8 12 1 Fire 155 | . 50 57 48 Melee 5 | . . . 5 Ram . | . . . . Kick 1 | . 1 . . Crush . | . . . . Escape Stasis . | . . . . Rewire . | . . . . Trap . | . . . . Miscellaneous . | . . . . Route ------- -11/Scrapyard -10/Materials (discovered 4 exits: *Mat x3 / [*Min]) -9/Materials (discovered 3 exits: *Mat / [*Min] / [*Sto]) -8/Materials History --------- Turn | Location | Event 8 | -11/Scrapyard | Discovered new exit (range 15) 60 | -11/Scrapyard | Entered Materials 208 | -10/Materials | Discovered new exit (range 5) 308 | -10/Materials | Build established: Mutant 555 | -10/Materials | Discovered new exit (range 16) 835 | -10/Materials | Discovered new exit (range 10) 1030 | -10/Materials | Discovered new exit (range 14) 1361 | -10/Materials | Entered another Materials area 1361 | -9/Materials | Evolved 2 slots: Propulsion x2 1460 | -9/Materials | Discovered new exit (range 11) 1660 | -9/Materials | Build established: Scavenger-Mutant 1723 | -9/Materials | Discovered new exit (range 5) 1858 | -9/Materials | Lost 3 parts (3n) 2025 | -9/Materials | Discovered new exit (range 16) 2085 | -9/Materials | Core integrity fell below 50% 2135 | -9/Materials | Entered another Materials area 2135 | -8/Materials | Evolved 2 slots: Utility x2 2854 | -8/Materials | Core integrity fell below 50% 2864 | -8/Materials | Core integrity fell below 20% 2872 | -8/Materials | Destroyed by G-47 Trooper with Particle Gun Last Messages --------------- 02852_ Katana destroyed. 02852_ U-05 Engineer lays Concrete. 02854_ R-06 Scavenger inserts Lgt. Ion Engine into recycling unit. 02854_ U-05 Engineer lays Concrete. 02856_ G-47 Trooper destroyed. 02857_ K-01 Serf collects debris. 02857_ R-06 Scavenger inserts Flight Unit into recycling unit. 02857_ U-05 Engineer lays Concrete. 02858_ Grenade Launcher destroyed. 02858_ Destroyed Grenade Launcher. 02858_ U-05 Engineer destroyed. 02858_ K-01 Serf destroyed. 02861_ Maul severed. 02864_ Destroyed Imp. Aluminum Leg. 02865_ L-31 Rogue destroyed. 02869_ Critical hit (Burn: +37). 02870_ Lgt. Assault Rifle destroyed. 02871_ Acquired Maul. Map ----- +----------------------------------------------------+ | ??????????????# #????# #???????????# # + | | ??????????????# #????# #???????????# # """ ## | | ??????????????# #????# #???????????# # """ !## | | ??????????????# ######%###?????????+^^ + """ #### | | ??????????##### #?????????# # #??# | | ??????????#!! #?????????# ^ ########### | | ??????????#!! #?????????# ^ # + | | ??????????#[[ ###+#### #?????????#^ ^#? "" #### | | ??????????#[[ # # #?????????# #??????#### | | ??????????#!!?# """ # #?????????# #??????# | | ??????????#!!?# """ # ########### #??????# "" | | ??????????##??# """ # #??????# "" | | ??????????????# [+% ! +??????# "" | | ??????????????# """ # #??????# "" | | ??????????????# """ # #########???????# "" | | ??????????????# """ # """ #???????????????# | | ??????????????# # """ #???????????????# | | ??????????????# """ # !""" #???????????????#### | | ??????????????# """ # """ #??????????????????# | | ??????????????# """ # #??????????????????# | | ??????????????? # #??????????????????# | | ?????????????????##### """ u#??????????????????# | | ??????????????????#### % " #????""#???????????# | | ??????????????????#""" # #???????????# | | ??????????????????#"Y # #???????????? | | ??????????????????#""" =@%* #????????? | | ??????????????????#### |% %[ +????????? | | ?????????????????????# [% #????????? | | ?????????????????????# ?????????? | | ?????????????????????#[%=### # ?????????? | | ?????????????????????# #?? ??????????? | | ?????????????????????# s#??? gg ##??????????? | | ?????????????????????# #??? #???????????? | | ?????????????????????# #????####t###???????????? | | ?????????????????????# s #????????? ????????????? | | ?????????????????????# ???????????#????????????? | | ?????????????????????# r????????????????????????? | | ?????????????????????# ????????????????????????? | | ?????????????????????# ????????????????????????? | | ?????????????????????# ????????????????????????? | | ?????????????????????? ????????????????????????? | | ?????????????????????????????????????????????????? | | ?????????????????????????????????????????????????? | | ?????????????????????????????????????????????????? | | ?????????????????????????????????????????????????? | | ?????????????????????????????????????????????????? | | ?????????????????????????????????????????????????? | | ?????????????????????????????????????????????????? | | ?????????????????????????????????????????????????? | | ?????????????????????????????????????????????????? | +----------------------------------------------------+ Best States ------------- Heat Dissipation 31 Energy Generation 14 Energy Capacity 250 Matter Stores 300 Matter Capacity 300 Sight Range 16 Terrain Scan Density 10 Armor Coverage 225 Propulsion Shielding 33 Weapon Shielding 33 Evasion (%) 55 Recoil Reduction 3 Item Schematics ----------------- Hacking Suite | -9/Materials | Scanalyzed Imp. Utility Shielding | -9/Materials | Scanalyzed Robot Schematics ------------------ None Fabricated ------------ Nothing Repaired ---------- Nothing Alien Tech Used ----------------- None Achievements -------------- None Challenges ------------ None Game ------ Seed NodeLargeMatrix Manual? 0 Play Time 00:22:50 Cumulative 33.0 hours Start 2025.09.14 @ 19:39:02 End 2025.09.14 @ 19:59:59 Sessions 1 Manual Loads 0 Difficulty Rogue Special Mode None Game No. 68 Rogue 68 Adventurer 0 Explorer 0 Win Type - Total 1 Types 1/0/0/0/0/0/0/0/0/0 Lore% 22 Gallery% 31 Achievement% 31 Wizard Run 0 Options --------- Layout 1 ASCII 0 Keyboard 0 Movement Mouse Keybinds 0 Fullscreen 1 Font 32/SmallcapsGlow Map View 50x35 Zoom Use 0% Tactical HUD 1 Map Filters NONE Filters NONE Steam 1 RUN: d5126f48-8f62-4606-b76f-2428c7dd4385